fUSD/lending_fUSD_20260605
["ID","MTS","AMOUNT","RATE_DAILY","PERIOD"]
[424191555,1780636248000,-169.4,0.000307,7]
[424191566,1780636248000,-237.85228121,0.00030726,2]
[424191554,1780636248000,-334.90707295,0.00030613,2]
[424191556,1780636248000,-300.85,0.000307,30]
[424191560,1780636248000,-412.08287509,0.00030726,2]
[424191563,1780636248000,-187.72741934,0.00030726,2]
[424191559,1780636248000,-320.06421264,0.00030726,2]
[424191562,1780636248000,-180.15419396,0.00030726,2]
[424191569,1780636248000,-154.33293846,0.00030726,2]
[424191564,1780636248000,-743.86439589,0.00030726,2]
[424191572,1780636248000,-442.10194557,0.00030726,2]
[424191557,1780636248000,-153.43386747,0.00030726,2]
[424191558,1780636248000,-345.30610599,0.00030726,2]
[424191567,1780636248000,-249.00047986,0.00030726,2]
[424191565,1780636248000,-402.57577996,0.00030726,2]
[424191636,1780636249000,-551.0,0.00031484,30]
[424191631,1780636249000,-401.0,0.00031416,30]
[424191641,1780636249000,-150.0,0.00031571,2]
[424191643,1780636249000,-150.0,0.00031571,2]
[424191632,1780636249000,-2016.0,0.00031472,30]
[424191633,1780636249000,-510.0,0.00031472,30]
[424191637,1780636249000,-638.0,0.00031484,30]
[424191602,1780636249000,-184.53587522,0.0003075,2]
[424191635,1780636249000,-1910.0,0.00031472,30]
[424191634,1780636249000,-366.0,0.00031472,30]
[424191642,1780636249000,-150.0,0.00031571,2]
[424191630,1780636249000,-287.0,0.00031416,30]
[424191648,1780636249000,-168.04448379,0.00031736,2]
[424191655,1780636249000,-1280.36,0.00031983,14]
[424191649,1780636249000,-280.0,0.00031782,2]
[424191646,1780636249000,-150.0,0.00031571,2]
[424191645,1780636249000,-150.0,0.00031571,2]
[424191652,1780636249000,-500.0,0.00031801,7]
[424191647,1780636249000,-217.0,0.00031571,2]
[424191650,1780636249000,-150.0,0.00031782,2]
[424191651,1780636249000,-220.0,0.00031782,2]
[424191653,1780636249000,-2209.482,0.00031842,30]
[424191665,1780636249000,-150.0,0.00032134,2]
[424191666,1780636249000,-150.0,0.00032134,2]
[424191654,1780636249000,-186.837,0.00031842,30]
[424191663,1780636249000,-150.0,0.00032134,2]
[424191628,1780636249000,-945.0,0.00031415,30]
[424191644,1780636249000,-150.0,0.00031571,2]
[424191639,1780636249000,-150.0,0.00031571,2]
[424191612,1780636249000,-500.0,0.00031163,2]
[424191640,1780636249000,-150.0,0.00031571,2]
[424191657,1780636249000,-150.0,0.00032134,2]
[424191598,1780636249000,-274.40226961,0.0003075,2]
[424191599,1780636249000,-329.76283086,0.0003075,2]
[424191600,1780636249000,-268.51720271,0.0003075,2]
[424191601,1780636249000,-575.26686972,0.0003075,2]
[424191604,1780636249000,-213.58468223,0.0003075,2]
[424191605,1780636249000,-327.68789264,0.0003075,2]
[424191614,1780636249000,-1000.0,0.000312,7]
[424191613,1780636249000,-160.0,0.000312,4]
[424191606,1780636249000,-1147.38187975,0.00030752,2]
[424191603,1780636249000,-276.70260468,0.0003075,2]
[424191608,1780636249000,-150.0,0.00031011,2]
[424191607,1780636249000,-234.87751754,0.00030844,6]
[424191629,1780636249000,-490.0,0.00031415,30]
[424191611,1780636249000,-183.96,0.000311,7]
[424191610,1780636249000,-78664.78668186,0.00031086,2]
[424191615,1780636249000,-160.0,0.000312,4]
[424191617,1780636249000,-929.83049487,0.0003131,2]
[424191618,1780636249000,-791.86296698,0.0003131,2]
[424191622,1780636249000,-339.62,0.0003132,2]
[424191627,1780636249000,-986.0,0.00031415,30]
[424191620,1780636249000,-888.8468293,0.0003131,2]
[424191624,1780636249000,-150.0,0.00031347,2]
[424191621,1780636249000,-785.12238209,0.0003131,2]
[424191626,1780636249000,-199.0,0.00031415,30]
[424191625,1780636249000,-150.0,0.00031347,2]
[424191616,1780636249000,-160.0,0.000312,4]
[424191623,1780636249000,-150.0,0.00031347,2]
[424191609,1780636249000,-500.0,0.00031024,6]
[424191660,1780636249000,-150.0,0.00032134,2]
[424191619,1780636249000,-861.26153515,0.0003131,2]
[424191661,1780636249000,-150.0,0.00032134,2]
[424191697,1780636249000,-3641.0,0.00032916,2]
[424191698,1780636249000,-933.0,0.00032916,2]
[424191694,1780636249000,-525.0,0.00032916,2]
[424191700,1780636249000,-160.0,0.000332,11]
[424191699,1780636249000,-557.69,0.00033007,30]
[424191702,1780636249000,-160.0,0.000332,9]
[424191705,1780636249000,-78664.78668186,0.00033311,2]
[424191701,1780636249000,-160.0,0.000332,9]
[424191704,1780636249000,-667.92392835,0.00033283,8]
[424191703,1780636249000,-299.73,0.0003322,14]
[424191714,1780636249000,-541.02,0.0003341,120]
[424191716,1780636249000,-500.0,0.0003341,120]
[424191711,1780636249000,-541.02,0.0003341,120]
[424191709,1780636249000,-541.02,0.0003341,120]
[424191708,1780636249000,-541.02,0.0003341,120]
[424191717,1780636249000,-541.02,0.0003341,120]
[424191707,1780636249000,-500.0,0.00033371,2]
[424191706,1780636249000,-500.0,0.00033356,8]
[424191713,1780636249000,-541.02,0.0003341,120]
[424191715,1780636249000,-541.02,0.0003341,120]
[424191710,1780636249000,-541.02,0.0003341,120]
[424191712,1780636249000,-541.02,0.0003341,120]
[424191718,1780636249000,-500.0,0.0003341,120]
[424191719,1780636249000,-541.02,0.0003341,120]
[424191723,1780636249000,-500.0,0.0003341,120]
[424191722,1780636249000,-541.02,0.0003341,120]
[424191721,1780636249000,-500.0,0.0003341,120]
[424191720,1780636249000,-541.02,0.0003341,120]
[424191664,1780636249000,-150.0,0.00032134,2]
[424191695,1780636249000,-1273.0,0.00032916,2]
[424191693,1780636249000,-3553.0,0.00032916,2]
[424191638,1780636249000,-2246.68319865,0.00031494,2]
[424191687,1780636249000,-1910.0,0.00032472,30]
[424191656,1780636249000,-150.0,0.00032134,2]
[424191662,1780636249000,-150.0,0.00032134,2]
[424191659,1780636249000,-150.0,0.00032134,2]
[424191658,1780636249000,-150.0,0.00032134,2]
[424191667,1780636249000,-1115.79659384,0.00032186,2]
[424191678,1780636249000,-199.0,0.00032415,30]
[424191670,1780636249000,-942.14685851,0.00032186,2]
[424191674,1780636249000,-160.0,0.000322,7]
[424191676,1780636249000,-156.0,0.0003224,2]
[424191679,1780636249000,-986.0,0.00032415,30]
[424191668,1780636249000,-950.23556038,0.00032186,2]
[424191669,1780636249000,-1033.51384218,0.00032186,2]
[424191671,1780636249000,-297.76,0.00032192,2]
[424191673,1780636249000,-160.0,0.000322,7]
[424191696,1780636249000,-1227.0,0.00032916,2]
[424191675,1780636249000,-745.6,0.0003221,5]
[424191688,1780636249000,-551.0,0.00032484,30]
[424191692,1780636249000,-1357.0,0.00032916,2]
[424191685,1780636249000,-510.0,0.00032472,30]
[424191690,1780636249000,-150.0,0.00032562,2]
[424191677,1780636249000,-326.62,0.00032263,4]
[424191686,1780636249000,-366.0,0.00032472,30]
[424191689,1780636249000,-638.0,0.00032484,30]
[424191683,1780636249000,-401.0,0.00032416,30]
[424191691,1780636249000,-500.0,0.00032579,7]
[424191682,1780636249000,-287.0,0.00032416,30]
[424191681,1780636249000,-490.0,0.00032415,30]
[424191680,1780636249000,-945.0,0.00032415,30]
[424191672,1780636249000,-160.0,0.000322,8]
[424191684,1780636249000,-2016.0,0.00032472,30]
[424191760,1780636250000,-841.71,0.0003341,120]
[424191761,1780636250000,-841.71,0.0003341,120]
[424191766,1780636250000,-738.66,0.0003341,120]
[424191762,1780636250000,-841.71,0.0003341,120]
[424191764,1780636250000,-841.79127567,0.0003341,120]
[424191753,1780636250000,-841.71,0.0003341,120]
[424191758,1780636250000,-841.71,0.0003341,120]
[424191759,1780636250000,-841.71,0.0003341,120]
[424191756,1780636250000,-841.71,0.0003341,120]
[424191757,1780636250000,-841.71,0.0003341,120]
[424191763,1780636250000,-841.71,0.0003341,120]
[424191765,1780636250000,-738.66,0.0003341,120]
[424191769,1780636250000,-738.66,0.0003341,120]
[424191774,1780636250000,-738.66,0.0003341,120]
[424191777,1780636250000,-738.66,0.0003341,120]
[424191771,1780636250000,-738.66,0.0003341,120]
[424191770,1780636250000,-738.66,0.0003341,120]
[424191772,1780636250000,-738.66,0.0003341,120]
[424191768,1780636250000,-738.66,0.0003341,120]
[424191775,1780636250000,-738.66,0.0003341,120]
[424191773,1780636250000,-738.66,0.0003341,120]
[424191778,1780636250000,-738.66,0.0003341,120]
[424191781,1780636250000,-738.66,0.0003341,120]
[424191779,1780636250000,-738.66,0.0003341,120]
[424191780,1780636250000,-738.66,0.0003341,120]
[424191748,1780636250000,-841.71,0.0003341,120]
[424191767,1780636250000,-738.66,0.0003341,120]
[424191752,1780636250000,-841.71,0.0003341,120]
[424191734,1780636250000,-541.11940694,0.0003341,120]
[424191747,1780636250000,-841.71,0.0003341,120]
[424191725,1780636250000,-500.0,0.0003341,120]
[424191727,1780636250000,-500.0,0.0003341,120]
[424191724,1780636250000,-541.02,0.0003341,120]
[424191726,1780636250000,-541.02,0.0003341,120]
[424191728,1780636250000,-541.02,0.0003341,120]
[424191730,1780636250000,-541.02,0.0003341,120]
[424191729,1780636250000,-500.0,0.0003341,120]
[424191732,1780636250000,-541.02,0.0003341,120]
[424191742,1780636250000,-500.0,0.0003341,30]
[424191731,1780636250000,-500.0,0.0003341,120]
[424191741,1780636250000,-500.0,0.0003341,30]
[424191736,1780636250000,-500.0,0.0003341,30]
[424191738,1780636250000,-500.0,0.0003341,30]
[424191782,1780636250000,-738.83019423,0.0003341,120]
[424191735,1780636250000,-500.0,0.0003341,30]
[424191737,1780636250000,-500.0,0.0003341,30]
[424191739,1780636250000,-500.0,0.0003341,30]
[424191733,1780636250000,-385.28261394,0.0003341,120]
[424191740,1780636250000,-500.0,0.0003341,30]
[424191743,1780636250000,-500.0,0.0003341,30]
[424191745,1780636250000,-500.0,0.0003341,30]
[424191744,1780636250000,-500.0,0.0003341,30]
[424191755,1780636250000,-841.71,0.0003341,120]
[424191749,1780636250000,-841.71,0.0003341,120]
[424191750,1780636250000,-841.71,0.0003341,120]
[424191754,1780636250000,-841.71,0.0003341,120]
[424191746,1780636250000,-234.27058828,0.0003341,30]
[424191751,1780636250000,-841.71,0.0003341,120]
[424191783,1780636250000,-500.0,0.0003341,2]
[424191776,1780636250000,-738.66,0.0003341,120]
[424191784,1780636250000,-500.0,0.0003341,2]
[424191817,1780636250000,-500.0,0.0003341,120]
[424191821,1780636250000,-500.0,0.0003341,120]
[424191827,1780636250000,-400.58877755,0.0003341,120]
[424191820,1780636250000,-500.0,0.0003341,120]
[424191823,1780636250000,-500.0,0.0003341,120]
[424191825,1780636250000,-500.0,0.0003341,120]
[424191818,1780636250000,-500.0,0.0003341,120]
[424191824,1780636250000,-500.0,0.0003341,120]
[424191826,1780636250000,-500.0,0.0003341,120]
[424191816,1780636250000,-500.0,0.0003341,120]
[424191822,1780636250000,-500.0,0.0003341,120]
[424191828,1780636250000,-500.0,0.0003341,120]
[424191834,1780636250000,-619.29,0.0003341,120]
[424191833,1780636250000,-619.29,0.0003341,120]
[424191832,1780636250000,-619.29,0.0003341,120]
[424191829,1780636250000,-500.0,0.0003341,120]
[424191839,1780636250000,-619.29,0.0003341,120]
[424191830,1780636250000,-643.64864932,0.0003341,120]
[424191838,1780636250000,-619.29,0.0003341,120]
[424191837,1780636250000,-619.29,0.0003341,120]
[424191785,1780636250000,-500.0,0.0003341,2]
[424191835,1780636250000,-619.29,0.0003341,120]
[424191836,1780636250000,-619.29,0.0003341,120]
[424191840,1780636250000,-619.29,0.0003341,120]
[424191841,1780636250000,-619.29,0.0003341,120]
[424191843,1780636250000,-619.29,0.0003341,120]
[424191842,1780636250000,-619.29,0.0003341,120]
[424191819,1780636250000,-500.0,0.0003341,120]
[424191815,1780636250000,-500.0,0.0003341,120]
[424191831,1780636250000,-619.29,0.0003341,120]
[424191811,1780636250000,-500.0,0.0003341,120]
[424191786,1780636250000,-500.0,0.0003341,2]
[424191810,1780636250000,-500.0,0.0003341,120]
[424191787,1780636250000,-500.0,0.0003341,2]
[424191789,1780636250000,-500.0,0.0003341,2]
[424191792,1780636250000,-500.0,0.0003341,2]
[424191791,1780636250000,-500.0,0.0003341,2]
[424191790,1780636250000,-500.0,0.0003341,2]
[424191801,1780636250000,-500.0,0.0003341,120]
[424191794,1780636250000,-500.0,0.0003341,2]
[424191802,1780636250000,-500.0,0.0003341,120]
[424191795,1780636250000,-500.0,0.0003341,2]
[424191793,1780636250000,-500.0,0.0003341,2]
[424191796,1780636250000,-596.86083769,0.0003341,2]
[424191788,1780636250000,-500.0,0.0003341,2]
[424191799,1780636250000,-500.0,0.0003341,120]
[424191798,1780636250000,-500.0,0.0003341,120]
[424191809,1780636250000,-500.0,0.0003341,120]
[424191808,1780636250000,-500.0,0.0003341,120]
[424191803,1780636250000,-500.0,0.0003341,120]
[424191805,1780636250000,-500.0,0.0003341,120]
[424191814,1780636250000,-500.0,0.0003341,120]
[424191812,1780636250000,-152.01996913,0.0003341,120]
[424191807,1780636250000,-500.0,0.0003341,120]
[424191806,1780636250000,-500.0,0.0003341,120]
[424191804,1780636250000,-500.0,0.0003341,120]
[424191797,1780636250000,-500.0,0.0003341,120]
[424191800,1780636250000,-500.0,0.0003341,120]
[424191813,1780636250000,-500.0,0.0003341,120]
[424191877,1780636251000,-500.0,0.0003341,2]
[424191879,1780636251000,-500.0,0.0003341,2]
[424191871,1780636251000,-500.0,0.0003341,2]
[424191874,1780636251000,-500.0,0.0003341,2]
[424191870,1780636251000,-500.0,0.0003341,2]
[424191873,1780636251000,-500.0,0.0003341,2]
[424191875,1780636251000,-500.0,0.0003341,2]
[424191878,1780636251000,-500.0,0.0003341,2]
[424191850,1780636251000,-500.0,0.0003341,2]
[424191876,1780636251000,-500.0,0.0003341,2]
[424191880,1780636251000,-500.0,0.0003341,2]
[424191881,1780636251000,-500.0,0.0003341,2]
[424191891,1780636251000,-500.0,0.0003341,2]
[424191892,1780636251000,-500.0,0.0003341,2]
[424191882,1780636251000,-500.0,0.0003341,2]
[424191893,1780636251000,-500.0,0.0003341,2]
[424191883,1780636251000,-500.0,0.0003341,2]
[424191884,1780636251000,-500.0,0.0003341,2]
[424191885,1780636251000,-500.0,0.0003341,2]
[424191872,1780636251000,-500.0,0.0003341,2]
[424191889,1780636251000,-500.0,0.0003341,2]
[424191868,1780636251000,-500.0,0.0003341,2]
[424191869,1780636251000,-500.0,0.0003341,2]
[424191866,1780636251000,-500.0,0.0003341,2]
[424191862,1780636251000,-500.0,0.0003341,2]
[424191888,1780636251000,-500.0,0.0003341,2]
[424191849,1780636251000,-500.0,0.0003341,2]
[424191844,1780636251000,-619.29,0.0003341,120]
[424191851,1780636251000,-500.0,0.0003341,2]
[424191847,1780636251000,-619.29,0.0003341,120]
[424191852,1780636251000,-500.0,0.0003341,2]
[424191845,1780636251000,-619.29,0.0003341,120]
[424191846,1780636251000,-619.29,0.0003341,120]
[424191848,1780636251000,-619.44525242,0.0003341,120]
[424191859,1780636251000,-500.0,0.0003341,2]
[424191858,1780636251000,-500.0,0.0003341,2]
[424191853,1780636251000,-500.0,0.0003341,2]
[424191856,1780636251000,-500.0,0.0003341,2]
[424191854,1780636251000,-500.0,0.0003341,2]
[424191864,1780636251000,-500.0,0.0003341,2]
[424191857,1780636251000,-500.0,0.0003341,2]
[424191865,1780636251000,-500.0,0.0003341,2]
[424191855,1780636251000,-500.0,0.0003341,2]
[424191861,1780636251000,-500.0,0.0003341,2]
[424191863,1780636251000,-500.0,0.0003341,2]
[424191860,1780636251000,-500.0,0.0003341,2]
[424191867,1780636251000,-500.0,0.0003341,2]
[424191886,1780636251000,-500.0,0.0003341,2]
[424191906,1780636251000,-500.0,0.0003341,2]
[424191890,1780636251000,-500.0,0.0003341,2]
[424191920,1780636251000,-500.0,0.0003341,2]
[424191923,1780636251000,-500.0,0.0003341,2]
[424191929,1780636251000,-500.0,0.0003341,2]
[424191930,1780636251000,-500.0,0.0003341,2]
[424191928,1780636251000,-500.0,0.0003341,2]
[424191924,1780636251000,-500.0,0.0003341,2]
[424191931,1780636251000,-500.0,0.0003341,2]
[424191921,1780636251000,-500.0,0.0003341,2]
[424191925,1780636251000,-500.0,0.0003341,2]
[424191926,1780636251000,-500.0,0.0003341,2]
[424191932,1780636251000,-500.0,0.0003341,2]
[424191927,1780636251000,-500.0,0.0003341,2]
[424191934,1780636251000,-500.0,0.0003341,2]
[424191933,1780636251000,-500.0,0.0003341,2]
[424191936,1780636251000,-500.0,0.0003341,2]
[424191937,1780636251000,-500.0,0.0003341,2]
[424191935,1780636251000,-500.0,0.0003341,2]
[424191938,1780636251000,-500.0,0.0003341,2]
[424191940,1780636251000,-1376811.2574019,0.00033411,2]
[424191939,1780636251000,-503.27720088,0.0003341,2]
[424191887,1780636251000,-500.0,0.0003341,2]
[424191914,1780636251000,-500.0,0.0003341,2]
[424191913,1780636251000,-500.0,0.0003341,2]
[424191922,1780636251000,-500.0,0.0003341,2]
[424191909,1780636251000,-500.0,0.0003341,2]
[424191911,1780636251000,-500.0,0.0003341,2]
[424191896,1780636251000,-500.0,0.0003341,2]
[424191899,1780636251000,-500.0,0.0003341,2]
[424191897,1780636251000,-500.0,0.0003341,2]
[424191898,1780636251000,-500.0,0.0003341,2]
[424191903,1780636251000,-500.0,0.0003341,2]
[424191905,1780636251000,-500.0,0.0003341,2]
[424191900,1780636251000,-500.0,0.0003341,2]
[424191904,1780636251000,-500.0,0.0003341,2]
[424191902,1780636251000,-500.0,0.0003341,2]
[424191895,1780636251000,-500.0,0.0003341,2]
[424191907,1780636251000,-500.0,0.0003341,2]
[424191901,1780636251000,-500.0,0.0003341,2]
[424191910,1780636251000,-500.0,0.0003341,2]
[424191915,1780636251000,-500.0,0.0003341,2]
[424191912,1780636251000,-500.0,0.0003341,2]
[424191908,1780636251000,-500.0,0.0003341,2]
[424191894,1780636251000,-500.0,0.0003341,2]
[424191918,1780636251000,-500.0,0.0003341,2]
[424191916,1780636251000,-500.0,0.0003341,2]
[424191917,1780636251000,-500.0,0.0003341,2]
[424191919,1780636251000,-500.0,0.0003341,2]
[424191958,1780636253000,-119.72424546,0.00029863,2]
[424191959,1780636253000,-380.27575454,0.00029863,2]
[424191968,1780636253000,-798.0,0.00029863,2]
[424191966,1780636253000,-62.78551905,0.00029863,2]
[424191967,1780636253000,-798.0,0.00029863,2]
[424191960,1780636253000,-180.16505033,0.00029863,2]
[424191957,1780636253000,-190.47806598,0.00029863,2]
[424191956,1780636253000,-309.52193402,0.00029863,2]
[424191955,1780636253000,-6.54142866,0.00029863,2]
[424191969,1780636253000,-798.0,0.00029863,2]
[424191941,1780636253000,-696.22831099,0.00029863,2]
[424191950,1780636253000,-39.73494211,0.00029201,2]
[424191946,1780636253000,-249.07,0.00029074,30]
[424191951,1780636253000,-209.33505789,0.00029201,2]
[424191948,1780636253000,-249.07,0.00029137,7]
[424191952,1780636253000,-477.64578545,0.00029863,2]
[424191953,1780636253000,-791.45857134,0.00029863,2]
[424191947,1780636253000,-249.07,0.00029105,2]
[424191944,1780636253000,-219.18244469,0.0002,2]
[424191945,1780636253000,-249.07,0.00029042,7]
[424191963,1780636253000,-63.01353557,0.00029863,2]
[424191943,1780636253000,-320.35421455,0.00029863,2]
[424191949,1780636253000,-249.07,0.00029169,30]
[424191962,1780636253000,-436.98646443,0.00029863,2]
[424191942,1780636253000,-101.77168901,0.00029863,2]
[424191961,1780636253000,-617.83494967,0.00029863,2]
[424191965,1780636253000,-437.21448095,0.00029863,2]
[424191988,1780636253000,-118.59675154,0.00033411,2]
[424191991,1780636253000,-482.08,0.00033411,2]
[424191989,1780636253000,-873.41256478,0.00033411,2]
[424191990,1780636253000,-11048.15996155,0.00033411,2]
[424191987,1780636253000,-574.52408774,0.00033025,2]
[424191986,1780636253000,-794.41997955,0.00033025,2]
[424191985,1780636253000,-787.43494,0.00033025,2]
[424191982,1780636253000,-633.99897701,0.00033025,2]
[424191981,1780636253000,-5510.21520984,0.00030025,2]
[424191984,1780636253000,-515.94682026,0.00033025,2]
[424191976,1780636253000,-798.0,0.00029863,2]
[424191954,1780636253000,-249.16,0.00029232,7]
[424191977,1780636253000,-798.0,0.00029863,2]
[424191975,1780636253000,-798.0,0.00029863,2]
[424191970,1780636253000,-798.0,0.00029863,2]
[424191972,1780636253000,-6072.0,0.00027025,2]
[424191971,1780636253000,-104.28531979,0.00029863,2]
[424191973,1780636253000,-693.71468021,0.00029863,2]
[424191964,1780636253000,-798.0,0.00029863,2]
[424191979,1780636253000,-798.0,0.00029863,2]
[424191974,1780636253000,-798.0,0.00029863,2]
[424191983,1780636253000,-2765.67519544,0.00033025,2]
[424191978,1780636253000,-798.0,0.00029863,2]
[424191980,1780636253000,-561.78479016,0.00030025,2]
[424191992,1780636268000,-409.0,0.00021875,2]
[424191993,1780636269000,164.64,0.000301,120]
[424191995,1780636277000,150.0,0.0001169,7]
[424191994,1780636277000,150.0,0.00011461,7]
[424191996,1780636278000,150.0,0.00012034,7]
[424191997,1780636279000,150.0,0.00012378,7]
[424191998,1780636321000,-500.0,0.00011458,2]
[424191999,1780636335000,178.34,0.00028159,120]
[424192000,1780636375000,-500.0,0.00011458,2]
[424192001,1780636400000,198.94428,0.000161,120]
[424192002,1780636400000,310.0,0.000161,120]
[424192003,1780636428000,-186.838,0.00011429,2]
[424192004,1780636482000,-808.65898511,0.00011429,2]
[424192005,1780636499000,-808.65898511,0.00011429,2]
[424192006,1780636514000,-500.0,0.00011428,2]
[424192007,1780636518000,574.83,0.00028731,120]
[424192008,1780636548000,500.0,0.00028731,120]
[424192009,1780636567000,-242.0,0.00011427,2]
[424192013,1780636621000,900.0,0.000119,4]
[424192012,1780636621000,600.0,0.000118,4]
[424192011,1780636621000,300.0,0.000117,4]
[424192010,1780636621000,-500.0,0.00011427,2]
[424192014,1780636675000,-455.52204999,0.00011427,2]
[424192015,1780636690000,150.0,0.00011969,120]
[424192016,1780636698000,161.28913256,0.00011656,7]
[424192017,1780636699000,241.93369887,0.00012341,7]
[424192018,1780636860000,-1200.0,0.000128,4]
[424192019,1780636860000,-150.0,0.00012836,7]
[424192020,1780636860000,-258.31659589,0.00012836,7]
[424192021,1780636860000,-1500.0,0.000129,4]
[424192023,1780636860000,-500.0,0.00015,3]
[424192022,1780636860000,-15361.31643343,0.00013,5]
[424192024,1780636860000,-300.0,0.00015,3]
[424192026,1780636877000,-250.0,0.00011426,2]
[424192025,1780636877000,-1200.0,0.00011425,2]
[424192028,1780636877000,-215.77576141,0.00011525,2]
[424192027,1780636877000,-724.45702978,0.00011429,2]
[424192031,1780636877000,-42949.59444562,0.00011603,2]
[424192029,1780636877000,-15732.95733639,0.00011595,2]
[424192030,1780636877000,-150.0,0.00011602,2]
[424192032,1780636877000,-367.82,0.00011603,2]
[424192036,1780636877000,-931.44,0.00011603,2]
[424192033,1780636877000,-9999.99,0.00011603,2]
[424192035,1780636877000,-9999.99,0.00011603,2]
[424192034,1780636877000,-9999.99,0.00011603,2]
[424192038,1780636877000,-999.99,0.00011603,2]
[424192037,1780636877000,-299.99,0.00011603,2]
[424192039,1780636877000,-14457.37239748,0.00011612,2]
[424192040,1780636879000,152.0,0.00012207,7]
[424192042,1780636913000,500.0,0.000291,120]
[424192043,1780636914000,348.93201236,0.000291,120]
[424192046,1780636959000,-800.0,0.000107,2]
[424192050,1780636990000,559.15,0.000291,120]
[424192049,1780636990000,559.15,0.000291,120]
[424192048,1780636990000,559.15,0.000291,120]
[424192047,1780636990000,559.15,0.000291,120]
[424192052,1780636991000,559.30032053,0.000291,120]
[424192051,1780636991000,559.15,0.000291,120]
[424192053,1780636993000,-5000.0,0.000107,2]
[424192054,1780636994000,-5000.0,0.000107,2]
[424192055,1780636996000,-5000.0,0.000107,2]
[424192056,1780636996000,-5000.0,0.000107,2]
[424192058,1780636997000,-5000.0,0.000107,2]
[424192057,1780636997000,-5000.0,0.000107,2]
[424192061,1780636998000,-5000.0,0.000107,2]
[424192060,1780636998000,-5000.0,0.000107,2]
[424192059,1780636998000,-5000.0,0.000107,2]
[424192064,1780636999000,-5000.0,0.000107,2]
[424192063,1780636999000,-5000.0,0.000107,2]
[424192062,1780636999000,-5000.0,0.000107,2]
[424192065,1780637000000,-5000.0,0.000107,2]
[424192066,1780637000000,-5000.0,0.000107,2]
[424192068,1780637000000,-5000.0,0.000107,2]
[424192067,1780637000000,-5000.0,0.000107,2]
[424192071,1780637001000,-5000.0,0.000107,2]
[424192070,1780637001000,-5000.0,0.000107,2]
[424192069,1780637001000,-5000.0,0.000107,2]
[424192073,1780637002000,-5000.0,0.000107,2]
[424192072,1780637002000,-5000.0,0.000107,2]
[424192076,1780637003000,-5000.0,0.000107,2]
[424192075,1780637003000,-5000.0,0.000107,2]
[424192074,1780637003000,-5000.0,0.000107,2]
[424192079,1780637004000,-5000.0,0.000107,2]
[424192078,1780637004000,-5000.0,0.000107,2]
[424192077,1780637004000,-5000.0,0.000107,2]
[424192080,1780637005000,-5000.0,0.000107,2]
[424192082,1780637005000,-5000.0,0.000107,2]
[424192081,1780637005000,-5000.0,0.000107,2]
[424192085,1780637006000,-5000.0,0.000107,2]
[424192084,1780637006000,-5000.0,0.000107,2]
[424192083,1780637006000,-5000.0,0.000107,2]